fUSD/lending_fUSD_20260202
["ID","MTS","AMOUNT","RATE_DAILY","PERIOD"]
[404268982,1770018647864,-1481.23780761,0.00015616,2]
[404268983,1770018647875,-217.15233878,0.00015616,2]
[404268984,1770018647885,-217.15233878,0.00015616,2]
[404268985,1770018647895,-500.0,0.00015616,2]
[404268986,1770018647907,-428.50325514,0.00015616,2]
[404268987,1770018647917,-1286.37746061,0.00015616,2]
[404268988,1770018647927,-301.1433787,0.00015618,2]
[404268990,1770018647937,-13924.38775799,0.00015791,2]
[404268991,1770018647948,-17614.4326096,0.00015791,2]
[404268993,1770018647959,-245.19,0.00015898,2]
[404268995,1770018647968,-342.12,0.00015918,2]
[404268996,1770018647978,-5000.0,0.0001596,2]
[404268997,1770018647988,-153.0,0.00016,2]
[404268998,1770018647998,-502.28798495,0.00016021,2]
[404268999,1770018648008,-1000.0,0.00016021,2]
[404269000,1770018648018,-899.10712823,0.00016021,2]
[404269001,1770018648028,-1000.0,0.00016021,2]
[404269002,1770018648038,-1000.0,0.00016021,2]
[404269003,1770018648050,-1000.0,0.00016021,2]
[404269004,1770018648060,-1000.0,0.00016021,2]
[404269005,1770018648070,-1000.0,0.00016021,2]
[404269006,1770018648080,-1000.0,0.00016021,2]
[404269007,1770018648090,-1003.91068608,0.00016021,2]
[404269008,1770018648100,-1000.0,0.00016021,2]
[404269009,1770018648110,-1000.0,0.00016021,2]
[404269010,1770018648119,-1000.0,0.00016021,2]
[404269011,1770018648129,-1000.0,0.00016021,2]
[404269012,1770018648139,-1000.0,0.00016021,2]
[404269013,1770018648150,-501.09302375,0.00016021,2]
[404269014,1770018648160,-501.89927416,0.00016021,2]
[404269015,1770018648169,-1000.0,0.00016021,2]
[404269016,1770018648180,-1000.0,0.00016021,2]
[404269017,1770018648190,-1000.0,0.00016021,2]
[404269018,1770018648203,-1000.0,0.00016021,2]
[404269019,1770018648214,-1000.0,0.00016021,2]
[404269020,1770018648224,-1000.0,0.00016021,2]
[404269021,1770018648235,-1000.0,0.00016021,2]
[404269022,1770018648246,-1000.0,0.00016021,2]
[404269023,1770018648256,-501.94112039,0.00016021,2]
[404269024,1770018648266,-1018.80564021,0.00016021,2]
[404269025,1770018648277,-1003.27979337,0.00016021,2]
[404269026,1770018648287,-1000.0,0.00016021,2]
[404269027,1770018648299,-501.08336444,0.00016021,2]
[404269028,1770018648309,-1000.0,0.00016021,2]
[404269029,1770018648320,-586.45296103,0.00016021,2]
[404269030,1770018648330,-1000.0,0.00016021,2]
[404269031,1770018648339,-1000.0,0.00016021,2]
[404269032,1770018648350,-1145.60955598,0.00016021,2]
[404269033,1770018648360,-987.31307274,0.00016021,2]
[404269034,1770018648370,-1000.0,0.00016021,2]
[404269035,1770018648379,-1000.0,0.00016021,2]
[404269036,1770018648390,-1000.0,0.00016021,2]
[404269037,1770018648400,-1000.0,0.00016021,2]
[404269038,1770018648410,-1000.0,0.00016021,2]
[404269039,1770018648420,-924.60877284,0.00016164,2]
[404269040,1770018648430,-187.78006525,0.00016164,2]
[404269041,1770018648440,-1536.04360649,0.00016164,2]
[404269042,1770018648450,-225.18697532,0.00016164,2]
[404269043,1770018648460,-225.18697532,0.00016164,2]
[404269044,1770018648470,-277.93,0.00016194,2]
[404269045,1770018648480,-153.21504762,0.00016255,2]
[404269046,1770018648489,-160.02702936,0.00016283,2]
[404269047,1770018648499,-150.0,0.00016288,2]
[404269048,1770018648510,-1000.0,0.00016334,2]
[404269049,1770018648520,-260.67628722,0.00016338,2]
[404269050,1770018648529,-839.0,0.000164,2]
[404269051,1770018648539,-163.0,0.000164,2]
[404269052,1770018648550,-320.0,0.000164,2]
[404269053,1770018648560,-824.0,0.000164,2]
[404269054,1770018648570,-150.0,0.00016429,2]
[404269055,1770018648580,-500.21,0.00016432,2]
[404269056,1770018648590,-418.08001855,0.00016437,2]
[404269057,1770018648599,-334.5472959,0.00016437,2]
[404269058,1770018648609,-500.0,0.00016438,2]
[404269059,1770018648619,-419.34493254,0.00016438,2]
[404269060,1770018648629,-1767.70233085,0.00016438,2]
[404269061,1770018648638,-1767.70233085,0.00016438,2]
[404269062,1770018648648,-1767.70233085,0.00016438,2]
[404269063,1770018648658,-1767.70233085,0.00016438,2]
[404269064,1770018648667,-1767.70233085,0.00016438,2]
[404269065,1770018648677,-1767.70233085,0.00016438,2]
[404269066,1770018648687,-1767.70233085,0.00016438,2]
[404269067,1770018648697,-1767.70233085,0.00016438,2]
[404269068,1770018648707,-1767.70233085,0.00016438,2]
[404269069,1770018648716,-1767.70233085,0.00016438,2]
[404269070,1770018648726,-1767.70233085,0.00016438,2]
[404269071,1770018648736,-1767.70233085,0.00016438,2]
[404269072,1770018648747,-1767.70233085,0.00016438,2]
[404269073,1770018648757,-1767.70233085,0.00016438,2]
[404269074,1770018648767,-1767.70233085,0.00016438,2]
[404269075,1770018648776,-1767.70233085,0.00016438,2]
[404269076,1770018648786,-1767.70233085,0.00016438,2]
[404269077,1770018648798,-1767.70233085,0.00016438,2]
[404269078,1770018648808,-1767.70233085,0.00016438,2]
[404269079,1770018648818,-1767.70233085,0.00016438,2]
[404269080,1770018648830,-1767.70233085,0.00016438,2]
[404269081,1770018648839,-1767.70233085,0.00016438,2]
[404269082,1770018648850,-1767.70233085,0.00016438,2]
[404269083,1770018648860,-1767.70233085,0.00016438,2]
[404269084,1770018648870,-1767.70233085,0.00016438,2]
[404269085,1770018648880,-1767.70233085,0.00016438,2]
[404269086,1770018648890,-1767.70233085,0.00016438,2]
[404269087,1770018648901,-1767.70233085,0.00016438,2]
[404269088,1770018648910,-1767.70233085,0.00016438,2]
[404269089,1770018648919,-1767.70233085,0.00016438,2]
[404269090,1770018648929,-1767.70233085,0.00016438,2]
[404269091,1770018648939,-1767.70233085,0.00016438,2]
[404269092,1770018648949,-1767.70233085,0.00016438,2]
[404269093,1770018648959,-1767.70233085,0.00016438,2]
[404269094,1770018648969,-1767.70233085,0.00016438,2]
[404269095,1770018648979,-1767.70233085,0.00016438,2]
[404269096,1770018648989,-1767.70233085,0.00016438,2]
[404269097,1770018648999,-1767.70233085,0.00016438,2]
[404269098,1770018649009,-1767.70233085,0.00016438,2]
[404269099,1770018649019,-1767.70233085,0.00016438,2]
[404269100,1770018649029,-1767.70233085,0.00016438,2]
[404269101,1770018649039,-1767.70233085,0.00016438,2]
[404269102,1770018649049,-1767.70233085,0.00016438,2]
[404269103,1770018649058,-1767.70233085,0.00016438,2]
[404269104,1770018649068,-1767.70233085,0.00016438,2]
[404269105,1770018649078,-1767.70233085,0.00016438,2]
[404269106,1770018649088,-1767.70233085,0.00016438,2]
[404269107,1770018649098,-1767.70233085,0.00016438,2]
[404269108,1770018649107,-1767.70233085,0.00016438,2]
[404269109,1770018649117,-1767.70233085,0.00016438,2]
[404269110,1770018649127,-1767.70233085,0.00016438,2]
[404269111,1770018649137,-1754.10462061,0.00016438,2]
[404269112,1770018649147,-1754.10462061,0.00016438,2]
[404269113,1770018649157,-1754.10462061,0.00016438,2]
[404269114,1770018649167,-1754.10462061,0.00016438,2]
[404269115,1770018649176,-1754.10462061,0.00016438,2]
[404269116,1770018649186,-1754.10462061,0.00016438,2]
[404269117,1770018649197,-1754.10462061,0.00016438,2]
[404269118,1770018649210,-1754.10462061,0.00016438,2]
[404269119,1770018649220,-1754.10462061,0.00016438,2]
[404269120,1770018649230,-1754.10462061,0.00016438,2]
[404269121,1770018649240,-1754.10462061,0.00016438,2]
[404269122,1770018649250,-1754.10462061,0.00016438,2]
[404269123,1770018649260,-1754.10462061,0.00016438,2]
[404269124,1770018649271,-1773.59467195,0.00016438,2]
[404269125,1770018649281,-1773.59467195,0.00016438,2]
[404269126,1770018649292,-1773.59467195,0.00016438,2]
[404269127,1770018649303,-1773.59467195,0.00016438,2]
[404269128,1770018649313,-1773.59467195,0.00016438,2]
[404269129,1770018649324,-1773.59467195,0.00016438,2]
[404269130,1770018649334,-1773.59467195,0.00016438,2]
[404269131,1770018649344,-1773.59467195,0.00016438,2]
[404269132,1770018649353,-1773.59467195,0.00016438,2]
[404269133,1770018649364,-1773.59467195,0.00016438,2]
[404269134,1770018649374,-1773.59467195,0.00016438,2]
[404269135,1770018649384,-1773.59467195,0.00016438,2]
[404269136,1770018649394,-1773.59467195,0.00016438,2]
[404269137,1770018649403,-1773.59467195,0.00016438,2]
[404269138,1770018649413,-1773.59467195,0.00016438,2]
[404269139,1770018649423,-1773.59467195,0.00016438,2]
[404269140,1770018649433,-1773.59467195,0.00016438,2]
[404269141,1770018649443,-1773.59467195,0.00016438,2]
[404269142,1770018649452,-1773.59467195,0.00016438,2]
[404269143,1770018649462,-1773.59467195,0.00016438,2]
[404269144,1770018649472,-1773.59467195,0.00016438,2]
[404269145,1770018649482,-1773.59467195,0.00016438,2]
[404269146,1770018649492,-1773.59467195,0.00016438,2]
[404269147,1770018649501,-1773.59467195,0.00016438,2]
[404269148,1770018649512,-1773.59467195,0.00016438,2]
[404269149,1770018649523,-1773.59467195,0.00016438,2]
[404269150,1770018649533,-1773.59467195,0.00016438,2]
[404269151,1770018649543,-1872.11781497,0.00016438,2]
[404269152,1770018649553,-284.66,0.00016438,2]
[404269153,1770018649563,-250.55733734,0.00016438,2]
[404269154,1770018649572,-800.78453244,0.00016438,2]
[404269155,1770018649582,-868.9,0.00016439,2]
[404269156,1770018649591,-150.0,0.00016482,2]
[404269157,1770018649601,-13924.38775799,0.00016487,2]
[404269158,1770018649611,-17614.4326096,0.00016487,2]
[404269159,1770018649620,-342.12,0.00016515,2]
[404269160,1770018649631,-1600.0,0.00016559,2]
[404269161,1770018649715,-343.08326797,0.00016568,2]
[404269162,1770018649725,-1500.0,0.00016568,2]
[404269163,1770018649735,-665.40489721,0.00016568,2]
[404269164,1770018649744,-1500.0,0.00016568,2]
[404269165,1770018649753,-1500.0,0.00016568,2]
[404269166,1770018649763,-1500.0,0.00016568,2]
[404269167,1770018649772,-1500.0,0.00016568,2]
[404269168,1770018649782,-545.1454494,0.00016568,2]
[404269169,1770018649792,-1500.0,0.00016568,2]
[404269170,1770018649803,-504.30163313,0.00016568,2]
[404269171,1770018649813,-1500.0,0.00016568,2]
[404269172,1770018649822,-505.45817911,0.00016568,2]
[404269173,1770018649832,-622.87168328,0.00016568,2]
[404269174,1770018649842,-1500.0,0.00016568,2]
[404269175,1770018649851,-1004.26216588,0.00016568,2]
[404269176,1770018649861,-1500.0,0.00016568,2]
[404269177,1770018649871,-1005.24936027,0.00016568,2]
[404269178,1770018649880,-505.38162593,0.00016568,2]
[404269179,1770018649890,-1005.54193795,0.00016568,2]
[404269180,1770018649900,-1500.0,0.00016568,2]
[404269181,1770018649909,-1001.96102054,0.00016568,2]
[404269182,1770018649918,-1500.0,0.00016568,2]
[404269183,1770018649928,-240.83933027,0.00016568,2]
[404269184,1770018649937,-1500.0,0.00016568,2]
[404269185,1770018649946,-504.6853335,0.00016568,2]
[404269186,1770018649956,-776.88278142,0.00016568,2]
[404269187,1770018649965,-1500.0,0.00016568,2]
[404269188,1770018649975,-1500.0,0.00016568,2]
[404269189,1770018649984,-1500.0,0.00016568,2]
[404269190,1770018649994,-305.66548204,0.0001658,2]
[404269191,1770018650003,-277.94807481,0.00016712,2]
[404269192,1770018650013,-194.72792766,0.00016712,2]
[404269193,1770018650022,-1592.87721993,0.00016712,2]
[404269194,1770018650032,-233.51889341,0.00016712,2]
[404269195,1770018650041,-233.51889341,0.00016712,2]
[404269196,1770018650053,-989.28,0.00016713,2]
[404269197,1770018650063,-1625.0,0.0001672,2]
[404269198,1770018650073,-163.0,0.0001672,2]
[404269199,1770018650082,-163.0,0.0001672,2]
[404269200,1770018650092,-773.23,0.00016799,2]
[404269201,1770018650101,-500.0,0.00016877,2]
[404269202,1770018650111,-1000.0,0.0001689,2]
[404269203,1770018650120,-1152.0,0.00016896,2]
[404269204,1770018650130,-245.19,0.00016938,2]
[404269205,1770018650140,-10091.57601831,0.00016947,2]
[404269206,1770018650150,-160.02702936,0.00016962,2]
[404269207,1770018650159,-5193.05797685,0.00016973,2]
[404269208,1770018650169,-956.83032725,0.00017,2]
[404269209,1770018650179,-2835.0,0.0001704,2]
[404269210,1770018650188,-163.0,0.0001704,2]
[404269211,1770018650198,-163.0,0.0001704,2]
[404269212,1770018650212,-163.0,0.0001704,2]
[404269213,1770018650221,-1899.6725397,0.00017046,2]
[404269214,1770018650231,-773.47,0.00017073,2]
[404269215,1770018650242,-152.68793744,0.00017089,2]
[404269216,1770018650252,-1500.0,0.000171,2]
[404269217,1770018650261,-342.12,0.00017112,2]
[404269218,1770018650270,-2000.0,0.00017116,2]
[404269219,1770018650281,-2000.0,0.00017116,2]
[404269220,1770018650291,-315.28060531,0.00017116,2]
[404269221,1770018650306,-1143.18674336,0.00017116,2]
[404269222,1770018650315,-2000.0,0.00017116,2]
[404269223,1770018650325,-1988.36339388,0.00017116,2]
[404269224,1770018650335,-1756.98671009,0.00017116,2]
[404269225,1770018650344,-1008.230722,0.00017116,2]
[404269226,1770018650354,-1474.64879752,0.00017116,2]
[404269227,1770018650364,-2128.18837233,0.00017116,2]
[404269228,1770018650373,-2000.0,0.00017116,2]
[404269229,1770018650383,-1006.20015718,0.00017116,2]
[404269230,1770018650392,-1189.68040771,0.00017116,2]
[404269231,1770018650402,-2000.0,0.00017116,2]
[404269232,1770018650412,-2000.0,0.00017116,2]
[404269233,1770018650421,-1000.0,0.00017122,2]
[404269234,1770018650431,-10614.4847842,0.00017173,2]
[404269235,1770018650440,-559.71,0.00017178,2]
[404269236,1770018650449,-13924.38775799,0.00017182,2]
[404269237,1770018650459,-17614.4326096,0.00017182,2]
[404269238,1770018650469,-201.93286099,0.0001726,2]
[404269239,1770018650479,-1651.81367706,0.0001726,2]
[404269240,1770018650488,-260.62456749,0.0001726,2]
[404269241,1770018650498,-242.15909246,0.0001726,2]
[404269242,1770018650508,-1000.0,0.0001726,2]
[404269243,1770018650517,-5888.0,0.00017295,2]
[404269244,1770018650527,-150.0,0.00017358,2]
[404269245,1770018650537,-150.0,0.00017358,2]
[404269246,1770018650549,-150.10178686,0.00017358,2]
[404269247,1770018650559,-150.8823375,0.00017358,2]
[404269248,1770018650569,-150.86853195,0.00017358,2]
[404269249,1770018650578,-150.28399281,0.00017358,2]
[404269250,1770018650587,-150.0,0.00017358,2]
[404269251,1770018650597,-150.0,0.00017358,2]
[404269252,1770018650606,-150.0,0.00017358,2]
[404269253,1770018650616,-5888.0,0.00017359,2]
[404269254,1770018650625,-163.0,0.0001736,2]
[404269255,1770018650635,-163.0,0.0001736,2]
[404269256,1770018650644,-163.0,0.0001736,2]
[404269257,1770018650653,-517.86422234,0.00017365,2]
[404269258,1770018650663,-150.0,0.00017413,2]
[404269259,1770018650673,-150.0,0.00017413,2]
[404269260,1770018650682,-150.0,0.00017413,2]
[404269261,1770018650691,-150.0,0.00017413,2]
[404269262,1770018650700,-155.94467862,0.00017413,2]
[404269263,1770018650710,-178.0,0.00017436,2]
[404269264,1770018650720,-154.82353453,0.00017451,2]
[404269265,1770018650730,-200.0,0.00017468,2]
[404269266,1770018650739,-289.36328116,0.00017468,2]
[404269267,1770018650749,-150.0,0.00017468,2]
[404269268,1770018650759,-150.0,0.00017468,2]
[404269269,1770018650768,-7026.3864,0.00017473,2]
[404269270,1770018650777,-150.0,0.00017522,2]
[404269271,1770018650786,-1000.0,0.00017534,2]
[404269272,1770018650797,-291.47561802,0.00017577,2]
[404269273,1770018650806,-3012.2001319,0.0001764,2]
[404269274,1770018650815,-160.02702936,0.0001764,2]
[404269275,1770018650824,-178.0,0.00017643,2]
[404269276,1770018650834,-1002.53462592,0.00017664,2]
[404269277,1770018650843,-502.76473862,0.00017664,2]
[404269278,1770018650853,-947.23523297,0.00017664,2]
[404269279,1770018650862,-1002.03881526,0.00017664,2]
[404269280,1770018650872,-1504.86417643,0.00017664,2]
[404269281,1770018650882,-1216.63993214,0.00017664,2]
[404269282,1770018650892,-500.0,0.00017671,2]
[404269283,1770018650901,-835.0,0.0001768,2]
[404269284,1770018650911,-163.0,0.0001768,2]
[404269285,1770018650920,-163.0,0.0001768,2]
[404269286,1770018650930,-1500.0,0.000177,2]
[404269287,1770018650939,-342.12,0.00017709,2]
[404269288,1770018650949,-1000.0,0.00017722,2]
[404269289,1770018650958,-25000.0,0.00017724,3]
[404269290,1770018650968,-25000.0,0.00017733,3]
[404269291,1770018650977,-25000.0,0.00017742,3]
[404269292,1770018650992,-25000.0,0.0001775,3]
[404269293,1770018651001,-25000.0,0.00017759,3]
[404269294,1770018651011,-25000.0,0.00017768,3]
[404269295,1770018651020,-25000.0,0.00017777,3]
[404269296,1770018651030,-150.0,0.00017783,2]
[404269297,1770018651040,-25000.0,0.00017786,3]
[404269298,1770018651050,-3481.0,0.00017788,2]
[404269299,1770018651060,-728.464,0.00017788,2]
[404269300,1770018651069,-1338.357,0.00017788,2]
[404269301,1770018651079,-1410.0,0.00017788,2]
[404269302,1770018651089,-1278.693,0.00017788,2]
[404269303,1770018651099,-568.0,0.00017788,2]
[404269304,1770018651113,-6579.0,0.00017788,2]
[404269305,1770018651123,-2445.0,0.00017788,2]
[404269306,1770018651133,-150.0,0.00017789,2]
[404269307,1770018651143,-25000.0,0.00017794,3]
[404269308,1770018651153,-154.89725075,0.000178,2]
[404269309,1770018651163,-25000.0,0.00017803,3]
[404269310,1770018651172,-346.92554585,0.00017806,2]
[404269311,1770018651182,-599.60298507,0.00017807,2]
[404269312,1770018651192,-747.8093786,0.00017807,2]
[404269313,1770018651203,-500.0,0.00017808,2]
[404269314,1770018651215,-209.40437684,0.00017808,2]
[404269315,1770018651225,-1712.93078312,0.00017808,2]
[404269316,1770018651235,-251.11897888,0.00017808,2]
[404269317,1770018651247,-1000.0,0.00017808,2]
[404269318,1770018651258,-25000.0,0.00017812,3]
[404269319,1770018651268,-2000.0,0.0001782,2]
[404269320,1770018651279,-2000.0,0.0001782,2]
[404269321,1770018651289,-25000.0,0.00017821,3]
[404269322,1770018651301,-25000.0,0.0001783,3]
[404269323,1770018651311,-877.65513559,0.0001783,2]
[404269324,1770018651320,-25000.0,0.00017838,3]
[404269325,1770018651330,-1000.0,0.0001784,2]
[404269326,1770018651340,-1000.0,0.00017844,2]
[404269327,1770018651350,-333.47,0.00017846,2]
[404269328,1770018651361,-25000.0,0.00017847,3]
[404269329,1770018651371,-200.0,0.00017855,2]
[404269330,1770018651381,-25000.0,0.00017856,3]
[404269331,1770018651391,-200.0,0.00017856,2]
[404269332,1770018651400,-200.0,0.00017856,2]
[404269333,1770018651411,-500.0,0.00017863,2]
[404269334,1770018651421,-25000.0,0.00017865,3]
[404269335,1770018651430,-25000.0,0.00017874,3]
[404269336,1770018651440,-178.0,0.00017878,2]
[404269337,1770018651450,-13924.38775799,0.00017878,2]
[404269338,1770018651460,-17614.4326096,0.00017878,2]
[404269339,1770018651470,-333.47,0.00017881,2]
[404269340,1770018651480,-25000.0,0.00017882,3]
[404269341,1770018651490,-25000.0,0.00017891,3]
[404269342,1770018651500,-3055.30582464,0.000179,2]
[404269343,1770018651510,-25000.0,0.000179,3]
[404269344,1770018651519,-502.14,0.000179,3]
[404269345,1770018651529,-260.67628722,0.000179,2]
[404269346,1770018651539,-1777.28427788,0.000179,3]
[404269347,1770018651552,-5809.64110209,0.000179,2]
[404269348,1770018651561,-12565.0,0.000179,2]
[404269349,1770018651571,-333.47,0.00017915,2]
[404269350,1770018651581,-500.0,0.00017918,2]
[404269351,1770018651590,-614.3,0.00017918,2]
[404269352,1770018651600,-1000.0,0.0001795,2]
[404269353,1770018651610,-1000.0,0.00017962,2]
[404269354,1770018651620,-217.08812203,0.00017968,2]
[404269355,1770018651630,-506.1208044,0.00017972,2]
[404269356,1770018651640,-484817.4929489,0.00017978,2]
[404269357,1770018651649,-151.0,0.00017978,2]
[404269358,1770018651659,-163.404548,0.00017978,2]
[404269359,1770018651669,-151.0,0.00017978,2]
[404269360,1770018651678,-297.581403,0.00017978,2]
[404269361,1770018651688,-155.468766,0.00017978,2]
[404269362,1770018651697,-151.0,0.00017978,2]
[404269363,1770018651706,-151.0,0.00017978,2]
[404269364,1770018651716,-256.207376,0.00017978,2]
[404269365,1770018651726,-256.207376,0.00017978,2]
[404269366,1770018651736,-256.207376,0.00017978,2]
[404269367,1770018651746,-256.207376,0.00017978,2]
[404269368,1770018651757,-151.0,0.00017978,2]
[404269369,1770018651767,-152.959758,0.00017978,2]
[404269370,1770018651777,-151.0,0.00017978,2]
[404269371,1770018651786,-211.795815,0.00017978,2]
[404269372,1770018651799,-151.0,0.00017978,2]
[404269373,1770018651809,-151.0,0.00017978,2]
[404269374,1770018651819,-247.496977,0.00017978,2]
[404269375,1770018651829,-247.496977,0.00017978,2]
[404269376,1770018651838,-247.496977,0.00017978,2]
[404269377,1770018651849,-247.496977,0.00017978,2]
[404269378,1770018651859,-315.036559,0.00017978,2]
[404269379,1770018651868,-315.036559,0.00017978,2]
[404269380,1770018651878,-315.036559,0.00017978,2]
[404269381,1770018651887,-315.036559,0.00017978,2]
[404269382,1770018651897,-500.0,0.00017982,2]
[404269383,1770018651907,-248.17115062,0.00017999,2]
[404269384,1770018651917,-300.0,0.00017999,2]
[404269385,1770018651926,-300.0,0.00017999,2]
[404269386,1770018651936,-300.0,0.00017999,2]
[404269387,1770018651946,-670.83228666,0.00017999,2]
[404269388,1770018651955,-300.0,0.00017999,2]
[404269389,1770018651965,-666.0,0.00017999,2]
[404269390,1770018651975,-152.55848434,0.00017999,2]
[404269391,1770018651985,-1470041.31955908,0.00018,2]
[404269392,1770018652608,-886.0,0.00011832,2]
[404269393,1770018652619,-447.0,0.00011855,2]
[404269394,1770018652629,-1557.0,0.00011879,2]
[404269395,1770018652638,-886.48548302,0.00016025,2]
[404269396,1770018652650,-113.51451698,0.00016025,2]
[404269397,1770018652660,-1000.0,0.00016025,2]
[404269398,1770018652670,-1000.0,0.00016025,2]
[404269399,1770018652679,-1000.0,0.00016025,2]
[404269400,1770018652689,-1000.0,0.00016025,2]
[404269401,1770018652698,-1000.0,0.00016025,2]
[404269402,1770018652709,-1000.0,0.00016025,2]
[404269403,1770018652719,-293851.89225319,0.00018,2]
[404269404,1770018652835,-362.58057004,0.00011617,2]
[404269405,1770018652846,-970.553,0.00016025,2]
[404269406,1770018652856,-1000.0,0.000168,2]
[404269407,1770018652866,-877.015,0.000168,2]
[404269408,1770018652876,-4868.85142996,0.00018,2]
[404269409,1770018652892,-3485.49454369,0.00018,2]
[404269410,1770018652904,-1922.70701254,0.00018,2]
[404269411,1770018652921,-9205.2,0.00018,2]
[404269412,1770018652932,-870.28629097,0.00018,2]
[404269417,1770019069433,-1200.0,0.00011416,2]
[404269418,1770019069456,-300.0,0.00011416,2]
[404269419,1770019069478,-168.0836346,0.00011417,2]
[404269420,1770019069504,-6333.93605235,0.00011417,2]
[404269421,1770019069527,-641.05610164,0.00011417,2]
[404269422,1770019069549,-641.05610164,0.00011417,2]
[404269423,1770019069570,-300.0,0.00011467,2]
[404269424,1770019069592,-250.0,0.00011467,2]
[404269425,1770019069613,-165.86810977,0.0001151,2]
[404269426,1770019069708,8627.3483437,0.0001782,30]
[404269427,1770019070034,1063.97957954,0.0001782,120]
[404269428,1770019172899,-300.0,0.00011506,2]
[404269429,1770019172921,-9700.0,0.00011507,2]
[404269432,1770019398534,-4647.594674,0.00011255,2]
[404269433,1770019398562,-704.820652,0.00011255,2]
[404269434,1770019398736,-226.0,0.00011312,2]
[404269435,1770019398769,-500.0,0.00011316,2]
[404269436,1770019398801,-150.0,0.00011324,2]
[404269437,1770019398852,-500.0,0.00011324,2]
[404269438,1770019398883,-500.0,0.00011324,2]
[404269439,1770019398913,-150.0,0.00011324,2]
[404269440,1770019398944,-150.0,0.00011324,2]
[404269441,1770019398974,-500.0,0.00011324,2]
[404269442,1770019399006,-500.0,0.00011324,2]
[404269443,1770019399039,-150.0,0.00011324,2]
[404269444,1770019399071,-500.0,0.00011324,2]
[404269445,1770019399101,-150.0,0.00011324,2]
[404269446,1770019399130,-150.0,0.00011324,2]
[404269447,1770019399159,-150.0,0.00011378,2]
[404269448,1770019399192,-150.0,0.00011379,2]
[404269449,1770019399222,-500.0,0.00011379,2]
[404269450,1770019399351,-553.40923612,0.00011379,2]
[404269451,1770019399383,-150.0,0.00011379,2]
[404269452,1770019399414,-500.0,0.00011379,2]
[404269453,1770019399450,-150.0,0.00011379,2]
[404269454,1770019399489,-500.0,0.00011379,2]
[404269455,1770019399523,-500.0,0.00011379,2]
[404269456,1770019399556,-500.0,0.00011434,2]
[404269457,1770019399883,-150.0,0.00011434,2]
[404269458,1770019399915,-500.0,0.00011434,2]
[404269459,1770019399945,-150.0,0.00011434,2]
[404269460,1770019399980,-500.0,0.00011434,2]
[404269461,1770019400013,-500.0,0.00011434,2]
[404269462,1770019400802,-150.0,0.00011443,2]
[404269463,1770019400823,-693.19152776,0.00011443,2]
[404269464,1770019400902,-10000.01,0.00011443,2]
[404269465,1770019400919,-4604.41234991,0.00011443,2]
[404269466,1770019400928,-480.79207623,0.00011474,2]
[404269467,1770019400937,-480.79207623,0.00011474,2]
[404269468,1770019400947,-1200.0,0.00011484,2]
[404269469,1770019400957,-3234.01349763,0.00011485,2]
[404269470,1770019401012,-10000.01,0.00011485,2]
[404269471,1770019401040,-7315.63308191,0.00011485,2]
[404269472,1770019401050,-244.0,0.00011485,2]
[404269473,1770019401059,-500.0,0.00011488,2]
[404269474,1770019401069,-200.0,0.00011488,2]
[404269475,1770019401078,-500.0,0.00011488,2]
[404269476,1770019401088,-150.0,0.00011488,2]
[404269477,1770019401098,-500.0,0.00011488,2]
[404269478,1770019401108,-500.0,0.00011488,2]
[404269479,1770019401117,-90.37691809,0.00011497,2]
[404269480,1770019401211,-96.054092,0.00011497,2]
[404269481,1770019401220,-176.37733019,0.00011497,2]
[404269482,1770019401229,-9727.57857781,0.00011506,2]
[404269483,1770019401276,-10000.01,0.00011506,2]
[404269484,1770019401293,-10000.01,0.00011506,2]
[404269485,1770019401387,-1424.55037595,0.00011506,2]
[404269486,1770019401532,-5809.64110211,0.00011497,2]
[404269487,1770019401542,-1341.26814599,0.00011507,2]
[404269488,1770019401593,-10000.01,0.00011507,2]
[404269489,1770019401710,-10000.01,0.00011507,2]
[404269490,1770019401803,-10000.01,0.00011507,2]